bitfinex/quotes_SOLUSD_20240628
["timestamp","ask_amount","ask_price","bid_price","bid_amount"]
[1719554532768,32.27,144.63,144.57,21.988]
[1719554535846,20.0,144.66,144.58,1.38320549]
[1719554536155,20.0,144.67,144.58,1.38320549]
[1719554538378,12.48064162,144.66,144.57,21.988]
[1719554538583,20.0,144.67,144.57,21.988]
[1719554538773,32.27,144.65,144.57,21.988]
[1719554539289,12.48284742,144.64,144.57,21.988]
[1719554539489,32.27,144.62,144.57,21.988]
[1719554539657,12.48504546,144.61,144.57,21.988]
[1719554539868,32.27,144.62,144.57,21.988]
[1719554540068,12.48505876,144.61,144.57,21.988]
[1719554540304,32.27,144.62,144.57,21.988]
[1719554547527,39.50580028,144.62,144.57,21.988]
[1719554550025,32.27,144.59,144.57,6.5556]
[1719554550793,32.27,144.59,144.55,1.820973]
[1719554551400,32.27,144.56,144.55,1.820973]
[1719554552028,52.27,144.56,144.55,1.820973]
[1719554552225,52.27,144.56,144.5,22.5919]
[1719554552411,32.27,144.53,144.5,22.5919]
[1719554553223,32.27,144.53,144.5,6.3797]
[1719554555647,32.27,144.55,144.5,6.3797]
[1719554556151,297.64589329,144.62,144.5,6.3797]
[1719554556316,32.27,144.57,144.5,6.3797]
[1719554558051,7.23394598,144.56,144.5,6.3797]
[1719554559435,7.23394598,144.56,144.51,15.5758]
[1719554559647,20.0,144.61,144.51,15.5758]
[1719554559824,7.23453061,144.58,144.51,15.5758]
[1719554560150,20.0,144.61,144.52,6.0319]
[1719554561315,32.27,144.59,144.52,6.0319]
[1719554561521,20.0,144.58,144.52,6.0319]
[1719554565257,32.27,144.59,144.52,6.0319]
[1719554575686,32.27,144.56,144.52,6.0319]
[1719554577265,20.0,144.55,144.52,6.0319]
[1719554577596,20.0,144.55,144.51,15.5758]
[1719554578972,20.0,144.59,144.51,15.5758]
[1719554579174,32.27,144.56,144.51,15.5758]
[1719554580276,52.27,144.59,144.52,6.3972]
[1719554581392,7.23164142,144.58,144.52,6.3972]
[1719554582896,7.23164142,144.58,144.54,15.4294]
[1719554583074,32.27,144.62,144.54,15.4294]
[1719554583592,7.23149696,144.63,144.55,6.5155]
[1719554583779,7.23149696,144.63,144.55,7.89907684]
[1719554583985,32.27,144.66,144.55,7.89907684]
[1719554584386,39.50139822,144.66,144.57,6.4344]
[1719554586284,32.27,144.63,144.57,6.4344]
[1719554589278,20.0,144.62,144.57,6.4344]
[1719554591289,32.27,144.6,144.54,6.0188]
[1719554591890,20.0,144.59,144.54,6.0188]
[1719554592092,32.27,144.57,144.54,6.0188]
[1719554594298,20.0,144.59,144.54,6.0188]
[1719554594497,32.27,144.59,144.54,6.0188]
[1719554594809,39.50343475,144.59,144.54,6.0188]
[1719554594983,32.27,144.59,144.54,6.0188]
[1719554598228,32.27,144.59,144.52,16.2006]
[1719554598229,32.27,144.56,144.52,16.2006]
[1719554600733,127.23313002,144.6,144.52,16.2006]
[1719554600915,32.27,144.57,144.52,16.2006]
[1719554601232,20.0,144.56,144.52,16.2006]
[1719554604740,32.27,144.56,144.52,16.2006]
[1719554606043,12.48965713,144.55,144.52,16.2006]
[1719554606214,32.27,144.56,144.52,16.2006]
[1719554606642,12.48958405,144.55,144.52,16.2006]
[1719554606816,32.27,144.56,144.52,16.2006]
[1719554608044,7.23197878,144.57,144.52,16.2006]
[1719554608408,55.84365737,144.59,144.52,16.2006]
[1719554609927,12.48754198,144.58,144.52,16.2006]
[1719554610129,12.48754198,144.57,144.52,16.2006]
[1719554611335,7.23334529,144.58,144.52,16.2006]
[1719554613850,52.00334529,144.59,144.52,16.2006]
[1719554614147,12.48754083,144.58,144.52,16.2006]
[1719554614347,32.27,144.59,144.52,16.2006]
[1719554620262,12.48725143,144.58,144.52,16.2006]
[1719554620446,32.27,144.59,144.52,16.2006]
[1719554620756,12.48758834,144.58,144.52,16.2006]
[1719554620958,12.48758834,144.57,144.52,16.2006]
[1719554621150,12.48758834,144.58,144.52,16.2006]
[1719554621343,20.0,144.57,144.52,16.2006]
[1719554621550,44.75927106,144.56,144.52,16.2006]
[1719554621773,32.27,144.56,144.52,16.2006]
[1719554622472,12.48962932,144.55,144.52,16.2006]
[1719554622668,32.27,144.56,144.52,16.2006]
[1719554622867,12.48962932,144.55,144.52,16.2006]
[1719554623071,32.27,144.56,144.51,6.2602]
[1719554623379,12.48992213,144.55,144.51,6.2602]
[1719554623553,32.27,144.56,144.51,6.2602]
[1719554623743,12.48994702,144.55,144.51,6.2602]
[1719554623951,32.27,144.56,144.51,6.2602]
[1719554624153,32.27,144.53,144.51,6.2602]
[1719554624647,32.27,144.53,144.48,16.2369]
[1719554625657,32.27,144.5,144.47,6.5872]
[1719554626458,32.27,144.5,144.45,15.8879]
[1719554626891,32.49509991,144.49,144.43,6.5872]
[1719554627089,20.0,144.49,144.43,6.5872]
[1719554633411,12.15740293,144.54,144.43,6.5872]
[1719554633616,20.0,144.53,144.43,6.5872]
[1719554633908,7.23159651,144.53,144.43,6.5872]
[1719554634209,32.27,144.54,144.43,6.5872]
[1719554634407,39.50152551,144.54,144.43,6.5872]
[1719554635109,20.0,144.53,144.43,6.5872]
[1719554636791,12.49406105,144.52,144.43,6.5872]
[1719554636992,12.49406105,144.51,144.43,6.5872]
[1719554637195,32.27,144.51,144.43,6.5872]
[1719554640506,20.0,144.53,144.43,6.5872]
[1719554640711,12.49406553,144.52,144.44,15.3137]
[1719554640899,20.0,144.53,144.44,15.3137]
[1719554643522,12.49347741,144.52,144.44,15.3137]
[1719554643728,20.0,144.53,144.44,15.3137]
[1719554643899,12.49347955,144.52,144.44,15.3137]
[1719554644100,20.0,144.53,144.44,15.3137]
[1719554644101,12.49464301,144.51,144.44,15.3137]
[1719554644300,64.76551808,144.5,144.44,15.3137]
[1719554644523,52.27,144.5,144.44,15.3137]
[1719554644901,7.23078256,144.49,144.44,15.3137]
[1719554645436,52.27,144.5,144.44,15.3137]
[1719554645596,59.50029866,144.5,144.44,15.3137]
[1719554646327,52.27,144.5,144.44,15.3137]
[1719554646501,59.4999964,144.5,144.44,15.3137]
[1719554649034,59.4999964,144.5,144.43,6.5872]
[1719554649035,12.49645999,144.49,144.43,6.5872]
[1719554649335,20.0,144.5,144.43,6.5872]
[1719554649529,20.0,144.51,144.43,6.5872]
[1719554650727,12.49623645,144.5,144.43,6.5872]
[1719554650924,20.0,144.51,144.43,6.5872]
[1719554651137,12.49646044,144.5,144.43,6.5872]
[1719554651314,20.0,144.51,144.43,6.5872]
[1719554651525,12.49689692,144.5,144.43,6.5872]
[1719554651707,64.76689692,144.49,144.43,6.5872]
[1719554651902,20.0,144.48,144.43,6.5872]
[1719554654248,20.0,144.48,144.41,15.9107]
[1719554654412,32.27,144.46,144.41,15.9107]
[1719554654613,32.27,144.46,144.39,6.1934]
[1719554654614,32.27,144.43,144.39,6.1934]
[1719554654935,20.0,144.42,144.38,15.6722]
[1719554657124,20.0,144.42,144.36,6.1934]
[1719554658027,32.27,144.4,144.36,6.1934]
[1719554660136,20.0,144.39,144.34,16.219]
[1719554662938,20.0,144.39,144.32,6.1678]
[1719554667539,7.2233835,144.41,144.32,6.1678]
[1719554667747,32.27,144.44,144.32,6.1678]
[1719554667949,20.0,144.43,144.32,6.1678]
[1719554668128,20.0,144.43,144.34,6.4086]
[1719554668129,27.2244319,144.43,144.34,6.4086]
[1719554668329,20.0,144.43,144.34,6.4086]
[1719554670053,39.49398305,144.44,144.34,6.4086]
[1719554670357,32.27,144.48,144.29,33.090226]
[1719554670358,100.0,144.52,144.38,6.1366]
[1719554670567,32.27,144.5,144.38,6.1366]
[1719554670735,20.0,144.49,144.39,1.38484707]
[1719554671053,20.0,144.49,144.4,15.1697]
[1719554671255,7.22377749,144.51,144.42,6.1366]
[1719554671429,32.27,144.55,144.42,6.1366]
[1719554671633,12.49430613,144.54,144.42,6.1366]
[1719554671831,32.27,144.52,144.42,6.1366]
[1719554672963,20.0,144.51,144.42,6.1366]
[1719554675858,32.27,144.49,144.42,6.1366]
[1719554676454,20.0,144.51,144.42,6.1366]
[1719554676637,20.0,144.53,144.42,6.1366]
[1719554680064,20.0,144.53,144.43,15.1229]
[1719554682881,20.0,144.53,144.34,62.74062453]
[1719554682882,20.0,144.53,144.45,15.5434]
[1719554683172,7.22409548,144.54,144.48,15.5434]
[1719554683352,254.6,144.59,144.49,1.38391951]
[1719554683665,12.49095683,144.58,144.49,1.38391951]
[1719554683852,254.6,144.59,144.48,15.5434]
[1719554684053,44.76077637,144.58,144.48,15.5434]
[1719554684257,12.49077637,144.57,144.48,15.5434]
[1719554685071,39.492408,144.58,144.48,15.5434]
[1719554685268,32.49159248,144.57,144.48,15.5434]
[1719554685468,20.0,144.57,144.48,15.5434]
[1719554685957,32.27,144.55,144.48,15.5434]
[1719554686658,20.0,144.54,144.48,15.5434]
[1719554688753,32.27,144.56,144.48,15.5434]
[1719554689068,20.0,144.55,144.48,15.5434]
[1719554691873,20.0,144.57,144.48,16.92741424]
[1719554692877,20.0,144.57,144.48,15.5434]
[1719554697483,20.0,144.57,144.49,6.5141]
[1719554698064,286.87,144.59,144.49,6.5141]
[1719554698065,20.0,144.58,144.49,6.5141]
[1719554700390,286.87,144.59,144.51,15.6348]
[1719554700557,254.6,144.59,144.52,6.2232]
[1719554700760,254.6,144.59,144.54,6.244]
[1719554702170,254.6,144.59,144.55,1.38340404]
[1719554702479,254.6,144.59,144.57,6.5053]
[1719554702781,254.6,144.59,144.57,7.88857152]
[1719554703166,254.6,144.68,144.57,7.88857152]
[1719554703478,20.0,144.67,144.57,7.88857152]
[1719554703679,20.0,144.67,144.57,6.5053]
[1719554704464,120.0,144.67,144.57,6.5053]
[1719554704670,12.48627102,144.66,144.57,6.5053]
[1719554704882,20.0,144.65,144.57,6.5053]
[1719554705086,32.27,144.64,144.57,6.5053]
[1719554705263,20.0,144.63,144.57,6.5053]
[1719554705665,261.82059456,144.68,144.57,7.88861358]
[1719554705864,32.48556566,144.67,144.57,7.88861358]
[1719554706064,20.0,144.67,144.57,7.88861358]
[1719554707166,20.0,144.67,144.57,6.5053]
[1719554710181,20.0,144.67,144.58,15.8551]
[1719554710487,3.57109489,144.72,144.61,6.1438]
[1719554710788,100.0,144.76,144.64,15.184]
[1719554710789,35.84109489,144.76,144.64,15.184]
[1719554710997,7.22056553,144.75,144.65,6.5228]
[1719554711295,32.27,144.76,144.65,6.5228]
[1719554711479,32.27,144.76,144.66,1.38065002]
[1719554711675,32.27,144.76,144.65,6.5228]
[1719554711879,20.0,144.75,144.65,6.5228]
[1719554712068,32.27,144.73,144.65,6.5228]
[1719554713094,32.27,144.76,144.65,6.5228]
[1719554713316,132.27,144.76,144.65,6.5228]
[1719554713622,32.47860057,144.75,144.65,6.5228]
[1719554713804,20.0,144.75,144.65,6.5228]
[1719554721525,20.0,144.75,144.67,6.2143]
[1719554721711,3.57109489,144.78,144.67,6.2143]
[1719554721712,20.0,144.76,144.67,6.2143]
[1719554721906,7.22043673,144.78,144.68,15.751]
[1719554722117,254.6,144.79,144.69,6.2143]
[1719554722612,254.6,144.79,144.71,6.2143]
[1719554722814,0.820226,144.8,144.71,6.2143]
[1719554723625,32.27,144.79,144.71,6.2143]
[1719554725340,0.820226,144.8,144.71,6.2143]
[1719554725917,32.27,144.78,144.71,6.2143]
[1719554731933,20.0,144.77,144.71,6.2143]
[1719554732136,20.0,144.77,144.61,6.5421]
[1719554732137,32.27,144.75,144.61,6.5421]
[1719554732316,32.27,144.72,144.61,6.5421]
[1719554732718,20.0,144.71,144.61,6.5421]
[1719554733537,7.2237373,144.7,144.61,6.5421]
[1719554737356,32.27,144.76,144.63,6.2969]
[1719554737523,20.0,144.75,144.63,6.2969]
[1719554737717,27.22124587,144.75,144.63,6.2969]
[1719554738852,27.22124587,144.75,144.65,6.2821]
[1719554739221,32.27,144.76,144.65,6.2821]
[1719554739565,32.27,144.76,144.67,6.3979]
[1719554745461,32.27,144.78,144.67,6.3979]
[1719554745655,20.0,144.77,144.67,6.3979]
[1719554746961,20.0,144.78,144.67,6.3979]
[1719554747270,52.27,144.78,144.67,6.3979]
[1719554747450,12.47362208,144.77,144.68,15.6179]
[1719554747637,52.27,144.78,144.68,21.8521]
[1719554748134,32.27,144.78,144.69,6.2976]
[1719554748342,261.82002537,144.79,144.69,6.2976]
[1719554749363,254.6,144.79,144.7,15.0448]
[1719554750550,12.47205454,144.78,144.7,15.0448]
[1719554750735,261.81834956,144.79,144.7,15.0448]
[1719554750940,12.4726678,144.78,144.7,15.0448]
[1719554751157,12.4726678,144.77,144.7,15.0448]
[1719554751366,12.4726678,144.78,144.7,15.0448]
[1719554752073,12.4726678,144.78,144.71,6.4935]
[1719554752569,0.820226,144.8,144.71,6.4935]
[1719554752865,12.47110837,144.79,144.71,6.4935]
[1719554753038,32.47110837,144.78,144.71,6.4935]
[1719554753237,0.820226,144.8,144.71,6.4935]
[1719554753440,12.47141454,144.79,144.71,6.4935]
[1719554753637,32.47141454,144.78,144.71,6.4935]
[1719554753838,20.0,144.77,144.71,6.4935]
[1719554754566,0.820226,144.8,144.71,6.4935]
[1719554754866,12.47110656,144.79,144.71,6.4935]
[1719554755059,32.47110656,144.78,144.71,6.4935]
[1719554755273,0.820226,144.8,144.71,6.4935]
[1719554755479,12.47097857,144.79,144.71,6.4935]
[1719554755675,32.47097857,144.78,144.71,6.4935]
[1719554755975,20.0,144.77,144.71,6.4935]
[1719554756184,0.820226,144.8,144.71,6.4935]
[1719554756334,0.820226,144.8,144.73,6.5714]
[1719554756335,12.47110954,144.79,144.73,6.5714]
[1719554756531,0.820226,144.8,144.73,6.5714]
[1719554756532,0.820226,144.8,144.74,16.48552816]
[1719554756740,0.820226,144.8,144.75,6.4553]
[1719554757260,0.820226,144.8,144.75,7.8368643]
[1719554757638,0.820226,144.8,144.75,6.4553]
[1719554760340,12.46999692,144.79,144.75,6.4553]
[1719554760659,0.820226,144.8,144.75,6.4553]
[1719554760972,12.4709553,144.79,144.75,6.4553]
[1719554761154,0.820226,144.8,144.75,6.4553]
[1719554761358,12.47062686,144.79,144.75,6.4553]
[1719554761665,12.47062686,144.78,144.75,6.4553]
[1719554761841,12.47062686,144.79,144.75,6.4553]
[1719554762643,20.0,144.78,144.75,6.4553]
[1719554763251,0.820226,144.8,144.75,6.4553]
[1719554763455,12.47016651,144.79,144.75,6.4553]
[1719554763648,0.820226,144.8,144.75,6.4553]
[1719554763852,12.47002378,144.79,144.75,6.4553]
[1719554764063,0.820226,144.8,144.75,6.4553]
[1719554768868,0.820226,144.8,144.76,1.3815512]
[1719554769064,0.820226,144.8,144.78,6.1448]
[1719554770152,0.820226,144.8,144.78,7.52596292]
[1719554770575,0.820226,144.8,144.78,6.1448]
[1719554771574,16.890226,144.8,144.78,6.1448]
[1719554772552,0.820226,144.8,144.78,6.1448]
[1719554780554,0.820226,144.8,144.74,21.4237]
[1719554781065,0.820226,144.8,144.74,6.3534]
[1719554781280,20.820226,144.8,144.74,6.3534]
[1719554782456,12.47194909,144.79,144.74,6.3534]
[1719554782683,20.0,144.78,144.74,6.3534]
[1719554782859,20.820226,144.8,144.74,6.3534]
[1719554784886,0.820226,144.8,144.74,6.3534]
[1719554788475,0.820226,144.8,144.75,15.7073]
[1719554788678,0.820226,144.8,144.76,1.38137897]
[1719554789062,0.820226,144.8,144.75,15.7073]
[1719554789463,0.820226,144.8,144.77,6.5881]
[1719554789675,0.820226,144.8,144.78,1.38109368]
[1719554790655,0.820226,144.8,144.77,6.5881]
[1719554796885,0.820226,144.8,144.75,15.7073]
[1719554802975,4.40472123,144.8,144.75,15.7073]
[1719554806388,0.820226,144.8,144.75,15.7073]
[1719554806593,16.08,144.79,144.75,15.7073]
[1719554807292,0.820226,144.8,144.75,15.7073]
[1719554807494,16.08,144.79,144.75,15.7073]
[1719554807691,0.820226,144.8,144.75,15.7073]
[1719554808200,16.08,144.79,144.75,15.7073]
[1719554808810,16.08,144.78,144.75,15.7073]
[1719554810782,16.08,144.77,144.75,15.7073]
[1719554811575,3.58449523,144.79,144.75,15.7073]
[1719554811576,16.08,144.76,144.75,15.7073]
[1719554811991,4.40472123,144.8,144.75,15.7073]
[1719554812275,16.08,144.77,144.75,15.7073]
[1719554812686,4.40472123,144.8,144.75,15.7073]
[1719554812888,16.08,144.77,144.75,15.7073]
[1719554814002,3.58449523,144.79,144.75,15.7073]
[1719554814204,16.08,144.78,144.75,15.7073]
[1719554814700,16.08,144.76,144.75,15.7073]
[1719554818900,3.58449523,144.79,144.75,15.7073]
[1719554819114,16.08,144.77,144.75,15.7073]
[1719554819810,16.08,144.76,144.75,15.7073]
[1719554820010,4.40472123,144.8,144.75,15.7073]
[1719554820191,16.900226,144.8,144.75,15.7073]
[1719554820509,0.820226,144.8,144.75,31.7873]
[1719554821286,0.820226,144.8,144.75,15.7073]
[1719554821500,0.820226,144.8,144.75,31.7873]
[1719554823713,16.900226,144.8,144.75,31.7873]
[1719554824215,16.900226,144.8,144.75,15.7073]
[1719554825413,16.900226,144.8,144.75,31.7873]
[1719554825588,0.820226,144.8,144.75,31.7873]
[1719554826011,0.820226,144.8,144.76,6.1109]
[1719554827429,0.820226,144.8,144.78,16.08]
[1719554827628,0.820226,144.8,144.79,32.1878]
[1719554827794,23.58449523,144.87,144.79,38.5459]
[1719554828128,16.08,144.86,144.8,1.38082251]
[1719554828326,16.08,144.86,144.8,17.46082251]
[1719554828706,20.0,144.87,144.8,17.46082251]
[1719554829015,20.0,144.89,144.81,16.08]
[1719554829212,16.08,144.87,144.82,1.38071223]
[1719554829397,16.08,144.87,144.83,6.03]
[1719554830394,16.08,144.85,144.83,6.03]
[1719554830601,67.90449523,144.9,144.79,22.4732]
[1719554830903,16.08,144.83,144.79,22.4732]
[1719554832552,23.58449523,144.89,144.79,22.4732]
[1719554832694,16.08,144.83,144.79,22.4732]
[1719554833537,3.58449523,144.87,144.79,6.3654]
[1719554833820,3.58449523,144.87,144.75,15.3859]
[1719554833821,16.08,144.8,144.75,15.3859]
[1719554834119,16.08,144.78,144.75,21.9881]
[1719554834295,16.08,144.77,144.75,21.9881]
[1719554834708,32.16,144.82,144.75,21.9881]
[1719554834910,20.0,144.81,144.75,21.9881]
[1719554835319,32.16,144.85,144.75,21.9881]
[1719554835526,15.1672,144.88,144.75,21.9881]
[1719554835527,20.0,144.84,144.75,21.9881]
[1719554835734,50.91169523,144.88,144.75,21.9881]
[1719554835901,20.0,144.87,144.75,21.9881]
[1719554838027,23.58449523,144.87,144.75,21.9881]
[1719554838404,20.0,144.87,144.75,21.9881]
[1719554838607,23.58449523,144.87,144.75,21.9881]
[1719554839122,20.0,144.87,144.75,21.9881]
[1719554839916,32.16,144.85,144.75,21.9881]
[1719554840114,20.0,144.84,144.75,21.9881]
[1719554843416,12.46666901,144.83,144.75,21.9881]
[1719554843616,32.46666901,144.82,144.75,21.9881]
[1719554843821,20.0,144.84,144.75,21.9881]
[1719554844027,12.46700112,144.83,144.75,21.9881]
[1719554844218,32.46700112,144.82,144.75,21.9881]
[1719554844421,20.0,144.84,144.75,21.9881]
[1719554844609,12.46713469,144.83,144.75,21.9881]
[1719554844808,32.46713469,144.82,144.75,21.9881]
[1719554845014,20.0,144.82,144.75,21.9881]
[1719554845431,20.0,144.84,144.75,21.9881]
[1719554846921,12.46640634,144.83,144.75,21.9881]
[1719554847112,20.0,144.82,144.75,21.9881]
[1719554847316,32.16,144.82,144.75,21.9881]
[1719554847552,20.0,144.81,144.75,21.9881]
[1719554847737,32.46789976,144.81,144.75,21.9881]
[1719554847939,20.0,144.81,144.75,21.9881]
[1719554849610,20.0,144.81,144.67,5.68156968]
[1719554849611,20.0,144.81,144.71,15.8206]
[1719554849823,32.16,144.79,144.71,15.8206]
[1719554850133,20.0,144.78,144.71,15.8206]
[1719554852012,12.47129161,144.77,144.71,15.8206]
[1719554852213,20.0,144.78,144.71,15.8206]
[1719554852214,20.0,144.76,144.71,15.8206]
[1719554852421,20.0,144.78,144.71,15.8206]
[1719554852734,12.47129019,144.77,144.71,15.8206]
[1719554852935,52.16,144.76,144.71,15.8206]
[1719554856315,20.0,144.76,144.71,15.8206]
[1719554856516,20.0,144.78,144.71,15.8206]
[1719554857814,20.0,144.78,144.72,7.48078812]
[1719554858041,20.0,144.81,144.72,7.48078812]
[1719554858357,12.46912137,144.8,144.72,6.099]
[1719554858511,20.0,144.79,144.72,6.099]
[1719554858717,20.0,144.81,144.72,6.099]
[1719554858917,12.46903902,144.8,144.72,6.099]
[1719554859229,20.0,144.79,144.72,6.099]
[1719554859429,20.0,144.81,144.72,6.099]
[1719554859636,12.46906738,144.8,144.72,6.099]
[1719554859829,20.0,144.79,144.72,6.099]
[1719554860032,7.20646682,144.82,144.72,6.099]
[1719554860238,20.0,144.81,144.72,6.099]
[1719554860822,20.0,144.82,144.72,6.099]
[1719554862333,12.46795905,144.81,144.72,6.099]
[1719554862563,20.0,144.82,144.72,6.099]
[1719554862734,12.46795905,144.81,144.72,6.099]
[1719554862923,20.0,144.82,144.72,6.099]
[1719554863125,12.46795905,144.81,144.72,6.099]
[1719554863335,20.0,144.82,144.72,6.099]
[1719554863650,12.46796118,144.81,144.72,6.099]
[1719554863852,20.0,144.82,144.72,6.099]
[1719554864026,12.46795905,144.81,144.72,6.099]
[1719554864349,20.0,144.82,144.72,6.099]
[1719554864555,12.46795905,144.81,144.72,6.099]
[1719554864728,20.0,144.82,144.72,6.099]
[1719554864930,12.46795905,144.81,144.72,6.099]
[1719554865147,20.0,144.82,144.72,6.099]
[1719554865339,12.46796118,144.81,144.72,6.099]
[1719554865541,20.0,144.82,144.72,6.099]
[1719554865847,12.46796118,144.81,144.72,6.099]
[1719554866031,20.0,144.82,144.72,6.099]
[1719554866232,12.46797574,144.81,144.72,6.099]
[1719554866426,12.46797574,144.81,144.75,21.9668]
[1719554866629,3.6147022,144.88,144.76,6.4093]
[1719554866838,12.4645749,144.87,144.79,6.4093]
[1719554867144,32.4645749,144.86,144.79,7.79036366]
[1719554867349,12.46471582,144.85,144.79,7.79036366]
[1719554867550,20.0,144.86,144.79,6.4093]
[1719554867855,23.61183297,144.89,144.79,6.4093]
[1719554868030,12.4632668,144.88,144.79,6.4093]
[1719554868231,32.4632668,144.87,144.79,6.4093]
[1719554868434,20.0,144.86,144.79,6.4093]
[1719554868627,20.0,144.89,144.79,6.4093]
[1719554868832,12.46325225,144.88,144.79,6.4093]
[1719554869041,32.46325225,144.87,144.79,6.4093]
[1719554869233,20.0,144.89,144.79,6.4093]
[1719554869437,12.4632529,144.88,144.79,6.4093]
[1719554869637,32.4632529,144.87,144.79,6.4093]
[1719554869838,20.0,144.89,144.79,6.4093]
[1719554870034,12.46325406,144.88,144.8,16.80688855]
[1719554870254,35.77183297,144.91,144.81,6.4507]
[1719554870425,16.07408896,144.9,144.81,6.4507]
[1719554870757,12.46225599,144.89,144.81,6.4507]
[1719554871425,12.4627113,144.88,144.81,6.4507]
[1719554871651,3.61183297,144.9,144.81,6.4507]
[1719554871838,31.66,144.88,144.81,6.4507]
[1719554872035,32.46272191,144.87,144.81,6.4507]
[1719554872257,12.46272191,144.86,144.81,6.4507]
[1719554872431,20.0,144.87,144.81,6.4507]
[1719554877028,12.46487503,144.86,144.81,6.4507]
[1719554877231,20.0,144.85,144.81,6.4507]
[1719554877450,20.0,144.87,144.81,6.4507]
[1719554877651,12.4647695,144.86,144.81,6.4507]
[1719554877853,32.46476737,144.85,144.81,6.4507]
[1719554878158,20.0,144.85,144.81,6.4507]
[1719554878452,20.0,144.87,144.81,6.4507]
[1719554878647,12.46412499,144.86,144.81,6.4507]
[1719554878859,20.0,144.85,144.81,6.4507]
[1719554879441,20.0,144.87,144.81,6.4507]
[1719554880352,12.46429076,144.86,144.81,6.4507]
[1719554880674,20.0,144.85,144.81,6.4507]
[1719554880958,20.0,144.87,144.81,6.4507]
[1719554881154,12.46503918,144.86,144.81,6.4507]
[1719554881357,32.46503918,144.85,144.81,6.4507]
[1719554881570,20.0,144.85,144.81,6.4507]
[1719554881941,20.0,144.87,144.81,6.4507]
[1719554882143,12.46453265,144.86,144.81,6.4507]
[1719554882351,32.46453265,144.85,144.81,6.4507]
[1719554882551,20.0,144.85,144.81,6.4507]
[1719554882940,42.48005859,144.88,144.81,6.4507]
[1719554882941,20.0,144.87,144.81,6.4507]
[1719554883141,12.46493854,144.86,144.81,6.4507]
[1719554883361,32.46493854,144.85,144.81,6.4507]
[1719554883565,23.61183297,144.87,144.81,6.4507]
[1719554883752,12.46523226,144.86,144.81,6.4507]
[1719554883958,32.46523226,144.85,144.81,6.4507]
[1719554884261,20.0,144.85,144.81,6.4507]
[1719554884466,23.61183297,144.87,144.81,6.4507]
[1719554884674,12.46436391,144.86,144.81,6.4507]
[1719554884873,32.46436391,144.85,144.81,6.4507]
[1719554885059,20.0,144.85,144.81,6.4507]
[1719554885370,20.0,144.87,144.81,6.4507]
[1719554885869,12.46389288,144.86,144.81,6.4507]
[1719554886061,20.0,144.85,144.81,6.4507]
[1719554886264,20.0,144.87,144.81,6.4507]
[1719554886474,12.46385283,144.86,144.81,6.4507]
[1719554886650,16.07,144.83,144.81,6.4507]
[1719554889363,20.0,144.87,144.81,6.4507]
[1719554889595,16.07,144.84,144.81,6.4507]
[1719554889762,20.0,144.89,144.81,6.4507]
[1719554890175,16.07,144.86,144.81,6.4507]
[1719554890381,16.07,144.86,144.81,22.5207]
[1719554890684,16.07,144.83,144.81,6.4507]
[1719554891066,16.07,144.84,144.81,6.4507]
[1719554891859,16.07,144.85,144.81,6.4507]
[1719554892954,20.0,144.89,144.81,6.4507]
[1719554893155,16.07,144.84,144.81,6.4507]